[Event "VIII Iberoamericano Mexico 2022"]
[Site "Mexico City"]
[Date "2022.02.19"]
[Round "8.29"]
[White "Estrada Nieto, Julian"]
[Black "Flores Irurso, Paul Josue"]
[Result "1-0"]
[ECO "A34"]
[WhiteElo "2253"]
[BlackElo "1912"]
[Annotator "ChessBase"]
[PlyCount "183"]
[EventDate "2022.02.12"]
[EventType "swiss"]
[EventCountry "MEX"]
[SourceTitle "playchess.com"]
[Source "ChessBase"]
[SourceQuality "1"]
[TimeControl "5400+30"]

1. e4 {[%emt 0:00:02]} c5 {[%emt 0:00:09]} 2. Nf3 {[%emt 0:00:04]} a6 {[%emt 0:01:28]} 3. c4 {[%emt 0:00:46]} e6 {[%emt 0:00:18]} 4. Nc3 {[%emt 0:00:51]} Nc6 {[%emt 0:02:38]} 5. Be2 {[%emt 0:03:47]} Nf6 {[%emt 0:02:21]} 6. O-O {[%emt 0:01:17]} Qc7 {[%emt 0:02:13]} 7. d4 {[%emt 0:01:56]} Ng4 {[%emt 0:09:50]} 8. g3 {[%emt 0:00:55]} cxd4 {[%emt 0:13:16]} 9. Nxd4 {[%emt 0:00:04]} Nge5 {[%emt 0:00:13]} 10. Be3 {[%emt 0:05:14]} Be7 {[%emt 0:05:22]} 11. Rc1 {[%emt 0:05:23]} O-O {[%emt 0:01:36]} 12. f4 {[%emt 0:07:22]} Nxd4 {[%emt 0:02:03]} 13. Qxd4 {[%emt 0:00:15]} Nc6 {[%emt 0:00:16]} 14. Qb6 {[%emt 0:00:53]} Qxb6 {[%emt 0:02:48]} 15. Bxb6 {[%emt 0:00:03]} d6 {[%emt 0:00:35]} 16. Rcd1 {[%emt 0:04:09]} e5 {[%emt 0:13:18]} 17. Nd5 {[%emt 0:17:21]} Bd8 {[%emt 0:00:31]} 18. f5 {[%emt 0:05:57]} Rb8 {[%emt 0:04:32]} 19. Be3 {[%emt 0:01:41]} b5 {[%emt 0:02:00]} 20. cxb5 {[%emt 0:03:22]} axb5 {[%emt 0:00:07]} 21. Rc1 {[%emt 0:00:14]} Bd7 {[%emt 0:01:15]} 22. Rfd1 {[%emt 0:01:27]} Ne7 {[%emt 0:03:32]} 23. Nb4 {[%emt 0:01:06]} Bb6 {[%emt 0:01:16]} 24. Bxb6 {[%emt 0:03:05]} Rxb6 {[%emt 0:00:10]} 25. Rc7 {[%emt 0:00:37]} Rd8 {[%emt 0:01:55]} 26. g4 {[%emt 0:01:01]} Kf8 {[%emt 0:01:04]} 27. a3 {[%emt 0:03:44]} Bc6 {[%emt 0:00:42]} 28. Bf3 {[%emt 0:02:48]} Ba8 {[%emt 0:06:19]} 29. Rdc1 {[%emt 0:06:50]} Rbb8 {[%emt 0:02:32]} 30. Kf2 {[%emt 0:03:18]} Rbc8 {[%emt 0:04:42]} 31. Ke3 {[%emt 0:07:12]} Rxc7 {[%emt 0:00:38]} 32. Rxc7 {[%emt 0:00:01]} Rc8 {[%emt 0:00:07]} 33. Rd7 {[%emt 0:01:52]} Nc6 {[%emt 0:05:03]} 34. Nxc6 {[%emt 0:00:15]} Bxc6 {[%emt 0:00:03]} 35. Rxd6 {[%emt 0:00:05]} Ke7 {[%emt 0:00:03]} 36. Rd2 {[%emt 0:00:23]} Bd7 {[%emt 0:00:41]} 37. Be2 {[%emt 0:00:21]} f6 {[%emt 0:01:19]} 38. Rd5 {[%emt 0:01:34]} Rb8 {[%emt 0:00:08]} 39. Rd3 {[%emt 0:01:42]} Bc6 {[%emt 0:01:36]} 40. Rc3 {[%emt 0:01:05]} Kd6 {[%emt 0:00:43]} 41. b4 {[%emt 0:00:08]} Ra8 {[%emt 0:00:47]} 42. Bd3 {[%emt 0:00:18]} Rh8 {[%emt 0:01:01]} 43. Be2 {[%emt 0:00:56]} Ra8 {[%emt 0:00:09]} 44. h4 {[%emt 0:00:23]} h6 {[%emt 0:00:05]} 45. Bd3 {[%emt 0:01:15]} Ra7 {[%emt 0:01:12]} 46. Bb1 {[%emt 0:00:48]} Ra8 {[%emt 0:02:41]} 47. Ba2 {[%emt 0:00:20]} Rc8 {[%emt 0:02:36]} 48. Rc5 {[%emt 0:03:36]} Rc7 {[%emt 0:02:34]} 49. Bd5 {[%emt 0:02:08]} Bd7 {[%emt 0:00:13]} 50. Rxc7 {[%emt 0:00:21]} Kxc7 {[%emt 0:00:05]} 51. g5 {[%emt 0:00:54]} hxg5 {[%emt 0:00:13]} 52. hxg5 {[%emt 0:00:06]} Kd6 {[%emt 0:00:07]} 53. gxf6 {[%emt 0:00:25]} gxf6 {[%emt 0:00:06]} 54. Bb3 {[%emt 0:00:11]} Be8 {[%emt 0:00:15]} 55. Bd1 {[%emt 0:00:39]} Bc6 {[%emt 0:00:24]} 56. Bc2 {[%emt 0:00:53]} Be8 {[%emt 0:00:19]} 57. Bd3 {[%emt 0:00:39]} Bc6 {[%emt 0:00:10]} 58. Kf3 {[%emt 0:00:06]} Be8 {[%emt 0:00:11]} 59. Kg4 {[%emt 0:00:05]} Ke7 {[%emt 0:00:09]} 60. Kh4 {[%emt 0:00:20]} Kd6 {[%emt 0:00:15]} 61. Be2 {[%emt 0:00:26]} Ke7 {[%emt 0:00:22]} 62. Bh5 {[%emt 0:00:31]} Bc6 {[%emt 0:00:05]} 63. Bf3 {[%emt 0:00:07]} Be8 {[%emt 0:00:06]} 64. Be2 {[%emt 0:00:28]} Kd6 {[%emt 0:01:20]} 65. Bd3 {[%emt 0:00:11]} Ke7 {[%emt 0:00:09]} 66. Kg3 {[%emt 0:00:05]} Kd6 {[%emt 0:00:13]} 67. Kf2 {[%emt 0:00:04]} Bc6 {[%emt 0:00:17]} 68. Ke3 {[%emt 0:00:04]} Ke7 {[%emt 0:00:20]} 69. Kd2 {[%emt 0:00:06]} Bd7 {[%emt 0:00:35]} 70. Kc3 {[%emt 0:00:03]} Kd6 {[%emt 0:00:16]} 71. Bb1 {[%emt 0:00:21]} Be8 {[%emt 0:00:17]} 72. Ba2 {[%emt 0:00:32]} Bc6 {[%emt 0:00:20]} 73. Kd3 {[%emt 0:00:10]} Be8 {[%emt 0:00:10]} 74. Bb3 {[%emt 0:00:48]} Ke7 {[%emt 0:00:25]} 75. Kc3 {[%emt 0:00:16]} Kd6 {[%emt 0:00:15]} 76. Bc2 {[%emt 0:00:18]} Bd7 {[%emt 0:00:21]} 77. Kb2 {[%emt 0:04:28]} Ke7 {[%emt 0:01:39]} 78. a4 {[%emt 0:01:21]} bxa4 {[%emt 0:00:08]} 79. Ka3 {[%emt 0:00:04]} Bc6 {[%emt 0:00:07]} 80. Bd3 {[%emt 0:00:09]} Kd6 {[%emt 0:01:20]} 81. b5 {[%emt 0:00:09]} Bd7 {[%emt 0:01:24]} 82. Kxa4 {[%emt 0:00:08]} Kc5 {[%emt 0:00:11]} 83. Ka5 {[%emt 0:00:18]} Bc8 {[%emt 0:00:10]} 84. b6 {[%emt 0:01:14]} Bb7 {[%emt 0:00:13]} 85. Bb1 {[%emt 0:01:18]} Bc8 {[%emt 0:03:17]} 86. Ba2 {[%emt 0:00:15]} Bb7 {[%emt 0:00:07]} 87. Bd5 {[%emt 0:01:17]} Bxd5 {[%emt 0:02:54]} 88. exd5 {[%emt 0:00:02]} Kxd5 {[%emt 0:00:10]} 89. b7 {[%emt 0:00:14]} Ke4 {[%emt 0:00:03]} 90. b8=Q {[%emt 0:00:11]} Kxf5 {[%emt 0:00:03]} 91. Kb4 {[%emt 0:00:06]} Kf4 {[%emt 0:00:11]} 92. Kc3 {[%emt 0:00:07]} 1-0

[Event "VIII Iberoamericano Mexico 2022"]
[Site "Mexico City"]
[Date "2022.02.19"]
[Round "8.31"]
[White "Zacarias Rodriguez, Santiago"]
[Black "Zacarias, M Ruben D"]
[Result "1-0"]
[ECO "B92"]
[WhiteElo "1896"]
[BlackElo "2174"]
[Annotator "RC"]
[PlyCount "51"]
[EventDate "2022.02.12"]
[EventType "swiss"]
[EventCountry "MEX"]
[SourceTitle "playchess.com"]
[Source "ChessBase"]
[SourceQuality "1"]
[TimeControl "5400+30"]

1. e4 {[%emt 1:31:00]} c5 {[%emt 0:00:08]} 2. Nf3 {[%emt 0:00:00]} d6 {[%emt 0:00:06]} 3. d4 {[%emt 0:00:00]} cxd4 {[%emt 0:00:05]} 4. Nxd4 {[%emt 0:00:00]} Nf6 {[%emt 0:00:08]} 5. Nc3 {[%emt 0:00:00]} a6 {[%emt 0:00:10]} 6. Be2 {[%emt 0:00:00]} e5 {[%emt 0:00:09]} 7. Nb3 {[%emt 0:00:00]} Be7 {[%emt 0:00:07]} 8. Bg5 {[%emt 0:00:00]} Nbd7 {[%emt 0:01:25]} 9. a4 {[%emt 0:00:00]} b6 {[%emt 0:00:08]} 10. Bc4 {[%emt 0:00:00]} Bb7 {[%emt 0:00:06]} 11. Qe2 {[%emt 0:00:00]} O-O {[%emt 0:00:28]} 12. O-O {[%emt 0:00:00]} Qc7 {[%emt 0:01:09]} 13. Nd2 {[%emt 0:00:00]} Rfc8 {[%emt 0:02:11]} 14. Bb3 {[%emt 0:00:00]} Qd8 {[%emt 0:03:07]} 15. Rfd1 {[%emt 0:00:00]} Rc5 {[%emt 0:08:47]} 16. Nc4 {[%emt 0:00:00]} Qc7 {[%emt 0:05:47]} 17. Be3 {[%emt 0:00:00]} Rc6 {[%emt 0:00:05]} 18. Nd5 {[%emt 0:00:00]} Qd8 {[%emt 0:00:06]} 19. Nxf6+ {[%emt 0:00:00]} gxf6 {[%emt 0:01:47]} 20. Qg4+ {[%emt 0:00:00]} Kh8 {[%emt 0:00:34]} 21. Bh6 {[%emt 0:00:00]} Bf8 {[%emt 0:00:17]} 22. Nxd6 {[%emt 0:00:00]} Rxd6 {[%emt 0:04:20]} 23. Rxd6 {[%emt 0:00:00]} Bxh6 {[%emt 0:03:28]} 24. Rxd7 {[%emt 0:00:00]} Qc8 {[%emt 0:00:29]} 25. Qf5 {[%emt 0:00:00]} Bg7 {[%emt 0:07:13]} 26. Rxb7 {[%emt 0:00:00]} 1-0

[Event "VIII Iberoamericano Mexico 2022"]
[Site "Mexico City"]
[Date "2022.02.19"]
[Round "8.36"]
[White "Macias Zamora, Jose Armando"]
[Black "Rosales Campos, Paul"]
[Result "1/2-1/2"]
[ECO "B40"]
[WhiteElo "1488"]
[BlackElo "2039"]
[Annotator "ChessBase"]
[PlyCount "73"]
[EventDate "2022.02.12"]
[EventType "swiss"]
[EventCountry "MEX"]
[SourceTitle "playchess.com"]
[Source "ChessBase"]
[SourceQuality "1"]
[TimeControl "5400+30"]

1. e4 {[%emt 0:00:03]} c5 {[%emt 0:00:37]} 2. Nf3 {[%emt 0:00:08]} e6 {[%emt 0:00:35]} 3. d4 {[%emt 0:00:11]} cxd4 4. Nxd4 {[%emt 0:00:10]} Nf6 {[%emt 0:01:28]} 5. Nc3 {[%emt 0:00:25]} Nc6 {[%emt 0:00:28]} 6. Nxc6 bxc6 {[%emt 0:00:48]} 7. Bd3 {[%emt 0:05:16]} d5 {[%emt 0:01:54]} 8. O-O {[%emt 0:00:22]} Be7 {[%emt 0:01:27]} 9. Qe2 {[%emt 0:02:51]} O-O {[%emt 0:06:35]} 10. b3 {[%emt 0:08:01]} Re8 {[%emt 0:09:58]} 11. Bb2 {[%emt 0:09:12]} Qc7 {[%emt 0:10:58]} 12. e5 {[%emt 0:06:50]} Nd7 {[%emt 0:02:01]} 13. Na4 {[%emt 0:01:09]} Nf8 {[%emt 0:12:41]} 14. f4 {[%emt 0:06:13]} c5 {[%emt 0:05:53]} 15. c4 {[%emt 0:02:54]} d4 {[%emt 0:07:59]} 16. Be4 {[%emt 0:03:06]} Bb7 {[%emt 0:05:59]} 17. Bc1 {[%emt 0:04:49]} Rad8 {[%emt 0:04:38]} 18. Nb2 {[%emt 0:01:45]} Bc8 {[%emt 0:03:59]} 19. Bd2 {[%emt 0:06:39]} f5 {[%emt 0:03:14]} 20. Bf3 {[%emt 0:05:35]} Bd7 {[%emt 0:02:32]} 21. Qe1 {[%emt 0:02:38]} Rb8 {[%emt 0:00:10]} 22. Ba5 {[%emt 0:03:13]} Qc8 {[%emt 0:00:15]} 23. Nd3 {[%emt 0:00:39]} g6 {[%emt 0:04:04]} 24. Rc1 {[%emt 0:10:24]} Qa6 {[%emt 0:05:00]} 25. Rf2 {[%emt 0:03:02]} Rec8 {[%emt 0:00:16]} 26. Rfc2 {[%emt 0:00:33]} Be8 {[%emt 0:02:02]} 27. b4 {[%emt 0:01:47]} cxb4 {[%emt 0:00:43]} 28. Bxb4 {[%emt 0:00:06]} Bxb4 {[%emt 0:00:39]} 29. Nxb4 {[%emt 0:00:01]} Qa3 {[%emt 0:00:24]} 30. Nd5 {[%emt 0:04:18]} exd5 {[%emt 0:00:54]} 31. Bxd5+ {[%emt 0:00:17]} Kg7 {[%emt 0:00:38]} 32. Qh4 {[%emt 0:00:29]} Rb6 {[%emt 0:06:42]} 33. c5 {[%emt 0:00:28]} Qe3+ {[%emt 0:00:34]} 34. Kh1 {[%emt 0:01:12]} g5 {[%emt 0:00:36]} 35. Qxg5+ {[%emt 0:00:25]} Ng6 {[%emt 0:00:19]} 36. g3 {[%emt 0:03:28]} Rbc6 {[%emt 0:00:16]} 37. Rb1 {[%emt 0:02:30]} 1/2-1/2

[Event "VIII Iberoamericano Mexico 2022"]
[Site "Mexico City"]
[Date "2022.02.19"]
[Round "8.41"]
[White "Pla, Silvio"]
[Black "Lopez Padilla, Piero Raul"]
[Result "1-0"]
[ECO "A48"]
[WhiteElo "2113"]
[BlackElo "1898"]
[Annotator "NA RC"]
[PlyCount "65"]
[EventDate "2022.02.12"]
[EventType "swiss"]
[EventCountry "MEX"]
[SourceTitle "playchess.com"]
[Source "ChessBase"]
[SourceQuality "1"]
[TimeControl "5400+30"]

1. d4 {[%emt 0:00:30]} Nf6 {[%emt 0:01:46]} 2. Bf4 {[%emt 0:00:00]} g6 {[%emt 0:00:11]} 3. e3 {[%emt 0:00:00]} Bg7 {[%emt 0:00:11]} 4. Nf3 {[%emt 0:00:05]} b6 {[%emt 0:00:25]} 5. Nbd2 {[%emt 0:01:13]} c5 {[%emt 0:00:21]} 6. c3 {[%emt 0:00:18]} Bb7 {[%emt 0:00:16]} 7. h3 {[%emt 0:00:20]} O-O {[%emt 0:00:08]} 8. Be2 {[%emt 0:00:27]} d6 {[%emt 0:00:24]} 9. O-O {[%emt 0:00:11]} Nbd7 {[%emt 0:00:19]} 10. a4 {[%emt 0:01:39] 10.Bh2 is the fancy move.} a6 {[%emt 0:00:18]} 11. Bh2 {[%emt 0:01:49]} Bc6 {[%emt 0:04:15]} 12. Bd3 {[%emt 0:15:09] [#]} d5 $146 {[%emt 0:01:17]} ({Predecessor:} 12... b5 13. e4 c4 14. Bc2 Bb7 15. Qe2 Ne8 16. e5 dxe5 17. Nxe5 Nxe5 18. Bxe5 Nf6 19. Ne4 Nd7 20. Bxg7 Kxg7 {1-0 (39) Drabke,L (2462)-Spornberger,M (2347) Austria 2016}) 13. Qe2 {[%emt 0:01:40]} c4 {[%emt 0:07:59]} 14. Bc2 {[%emt 0:00:10]} Ra7 {[%emt 0:00:59]} 15. Ne5 {[%emt 0:07:48]} Nxe5 {[%emt 0:00:58]} 16. Bxe5 {[%emt 0:00:22]} Qa8 {[%emt 0:02:17]} 17. f4 {[%emt 0:12:15]} b5 {[%emt 0:04:50]} 18. a5 {[%emt 0:04:49]} Ne4 {[%emt 0:07:48]} 19. Nxe4 {[%emt 0:03:15]} dxe4 {[%emt 0:00:06]} 20. Bxg7 {[%emt 0:00:12]} Kxg7 {[%emt 0:00:07]} 21. f5 {[%emt 0:01:18]} f6 {[%emt 0:02:43]} 22. Qg4 {[%emt 0:02:46]} e6 {[%emt 0:07:14]} 23. fxg6 {[%emt 0:12:52]} f5 {[%emt 0:00:26]} 24. Qf4 {[%emt 0:00:50]} hxg6 {[%emt 0:00:12]} 25. Qe5+ {[%emt 0:00:14]} Kf7 {[%emt 0:00:31]} 26. Rf4 {[%emt 0:06:13]} Qb8 {[%emt 0:05:31]} 27. Qc5 $17 {[%emt 0:00:57]} ({White should play} 27. Rd1 $15) 27... Bd5 {[%emt 0:00:20]} 28. Raf1 {[%emt 0:01:08]} g5 {[%emt 0:12:14]} 29. Rxf5+ {[%emt 0:02:18]} exf5 {[%emt 0:04:11]} 30. Rxf5+ {[%emt 0:00:01]} Kg6 {[%emt 0:04:47]} 31. Rxf8 {[%emt 0:00:50]} Qb7 {[%emt 0:02:51]} 32. Rd8 {[%emt 0:02:38]} Bf7 {[%emt 0:02:08]} 33. Qe5 {[%emt 0:00:23]} 1-0

[Event "VIII Iberoamericano Mexico 2022"]
[Site "Mexico City"]
[Date "2022.02.19"]
[Round "8.45"]
[White "Ortiz Verdezoto, Anahi"]
[Black "Zaragoza Alanis, Miguel Arnulfo"]
[Result "1-0"]
[ECO "D85"]
[WhiteElo "2047"]
[BlackElo "1342"]
[Annotator "ChessBase"]
[PlyCount "67"]
[EventDate "2022.02.12"]
[EventType "swiss"]
[EventCountry "MEX"]
[SourceTitle "playchess.com"]
[Source "ChessBase"]
[SourceQuality "1"]
[TimeControl "5400+30"]

1. d4 {[%emt 0:00:04]} Nf6 {[%emt 0:00:00]} 2. c4 {[%emt 0:00:11]} g6 {[%emt 0:00:01]} 3. Nc3 {[%emt 0:00:08]} d5 4. cxd5 {[%emt 0:00:10]} Nxd5 {[%emt 0:00:03]} 5. Nf3 {[%emt 0:00:15]} Bg7 {[%emt 0:00:13]} 6. e4 {[%emt 0:00:11]} Nxc3 {[%emt 0:00:04]} 7. bxc3 {[%emt 0:00:03]} c5 {[%emt 0:00:29]} 8. h3 {[%emt 0:00:22]} Nc6 {[%emt 0:00:06]} 9. Be3 {[%emt 0:00:07]} cxd4 10. cxd4 {[%emt 0:00:28]} Qa5+ {[%emt 0:00:29]} 11. Bd2 {[%emt 0:00:09]} Qa3 {[%emt 0:00:04]} 12. d5 {[%emt 0:00:18]} Ne5 13. Nxe5 {[%emt 0:00:17]} Bxe5 {[%emt 0:00:14]} 14. Bb5+ {[%emt 0:00:04]} Kf8 {[%emt 0:01:11]} 15. Rb1 {[%emt 0:03:06]} Kg7 {[%emt 0:03:02]} 16. Qe2 {[%emt 0:02:47]} e6 {[%emt 0:05:27]} 17. O-O {[%emt 0:01:33]} Qe7 {[%emt 0:00:52]} 18. Bc4 {[%emt 0:07:04]} b6 {[%emt 0:01:22]} 19. Be3 {[%emt 0:04:28]} Bd6 {[%emt 0:04:13]} 20. e5 {[%emt 0:10:19]} Bxe5 {[%emt 0:03:24]} 21. Bh6+ {[%emt 0:00:43]} Kxh6 {[%emt 0:00:20]} 22. Qxe5 {[%emt 0:00:02]} f6 {[%emt 0:02:10]} 23. Qe3+ {[%emt 0:00:23]} Kg7 {[%emt 0:00:16]} 24. dxe6 {[%emt 0:00:03]} Bb7 {[%emt 0:03:23]} 25. Rfd1 {[%emt 0:04:50]} Rhd8 {[%emt 0:00:53]} 26. Bb5 {[%emt 0:01:04]} a6 {[%emt 0:12:54]} 27. Bd7 {[%emt 0:05:05]} Bc8 {[%emt 0:12:13]} 28. Rxb6 {[%emt 0:01:22]} Ra7 {[%emt 0:11:46]} 29. Rc6 {[%emt 0:01:03]} Ra8 {[%emt 0:01:30]} 30. Rc7 {[%emt 0:05:38]} Kf8 {[%emt 0:05:18]} 31. Qc1 {[%emt 0:05:35]} Bxd7 {[%emt 0:01:48]} 32. Qh6+ {[%emt 0:00:51]} Qg7 {[%emt 0:00:41]} 33. e7+ {[%emt 0:00:12]} Kf7 {[%emt 0:00:53]} 34. Qxg7+ {[%emt 0:00:07]} 1-0

[Event "VIII Iberoamericano Mexico 2022"]
[Site "Mexico City"]
[Date "2022.02.19"]
[Round "8.46"]
[White "Ramirez Toledo, Ayleen Maribel"]
[Black "Fernandez Rivero, Karla July"]
[Result "1/2-1/2"]
[ECO "A13"]
[WhiteElo "1810"]
[BlackElo "2025"]
[Annotator "ChessBase"]
[PlyCount "67"]
[EventDate "2022.02.12"]
[EventType "swiss"]
[EventCountry "MEX"]
[SourceTitle "playchess.com"]
[Source "ChessBase"]
[SourceQuality "1"]
[TimeControl "5400+30"]

1. Nf3 {[%emt 0:00:03]} Nf6 {[%emt 0:00:18]} 2. g3 {[%emt 0:00:05]} e6 {[%emt 0:00:23]} 3. Bg2 {[%emt 0:00:05]} d5 {[%emt 0:00:21]} 4. O-O {[%emt 0:00:15]} Be7 {[%emt 0:00:32]} 5. c4 dxc4 {[%emt 0:00:27]} 6. Qa4+ {[%emt 0:00:22]} c6 {[%emt 0:00:37]} 7. Qxc4 {[%emt 0:00:08]} b5 {[%emt 0:00:33]} 8. Qc2 {[%emt 0:00:08]} Bb7 {[%emt 0:00:28]} 9. d3 {[%emt 0:00:16]} c5 {[%emt 0:03:32]} 10. a4 {[%emt 0:00:47]} b4 {[%emt 0:01:11]} 11. Nbd2 {[%emt 0:00:24]} O-O {[%emt 0:01:06]} 12. Nc4 {[%emt 0:00:14]} Nc6 {[%emt 0:04:25]} 13. a5 {[%emt 0:07:39]} Rc8 {[%emt 0:06:37]} 14. b3 {[%emt 0:06:40]} Nd5 {[%emt 0:10:05]} 15. Bb2 {[%emt 0:05:49]} Nc7 {[%emt 0:11:23]} 16. e3 {[%emt 0:08:09]} Nb5 {[%emt 0:05:05]} 17. Nfe5 {[%emt 0:05:52]} Bf6 {[%emt 0:04:49]} 18. f4 {[%emt 0:08:19]} Ba8 {[%emt 0:14:03]} 19. Rf2 {[%emt 0:19:55]} Nxe5 {[%emt 0:05:33]} 20. Nxe5 {[%emt 0:00:50]} Bxg2 {[%emt 0:00:56]} 21. Rxg2 {[%emt 0:00:36]} Bxe5 {[%emt 0:01:12]} 22. Bxe5 {[%emt 0:00:16]} Na3 {[%emt 0:00:48]} 23. Qd1 {[%emt 0:06:44]} Qxa5 {[%emt 0:12:29]} 24. Qg4 {[%emt 0:03:09]} f6 {[%emt 0:02:47]} 25. Qxe6+ {[%emt 0:00:15]} Kh8 {[%emt 0:00:07]} 26. Bb2 {[%emt 0:00:49]} Rfe8 {[%emt 0:03:06]} 27. Qf5 {[%emt 0:04:39]} Qb6 {[%emt 0:00:31]} 28. g4 {[%emt 0:03:19]} Qe6 {[%emt 0:04:30]} 29. Qxe6 {[%emt 0:02:37]} Rxe6 {[%emt 0:00:02]} 30. e4 {[%emt 0:07:21]} Rd8 {[%emt 0:05:57]} 31. Bxa3 {[%emt 0:02:05]} bxa3 {[%emt 0:00:05]} 32. Rxa3 {[%emt 0:00:06]} Rxd3 {[%emt 0:01:11]} 33. Rxa7 {[%emt 0:00:05]} h6 {[%emt 0:00:25]} 34. Kh1 {[%emt 0:09:29]} 1/2-1/2

[Event "VIII Iberoamericano Mexico 2022"]
[Site "Mexico City"]
[Date "2022.02.18"]
[Round "8.50"]
[White "Guerrero Rodriguez, Alejandra"]
[Black "Hernandez Martinez, Jeronimo"]
[Result "1-0"]
[ECO "C78"]
[WhiteElo "2019"]
[BlackElo "1747"]
[Annotator "ChessBase"]
[PlyCount "23"]
[EventDate "2022.02.12"]
[EventType "swiss"]
[EventCountry "MEX"]
[SourceTitle "playchess.com"]
[Source "ChessBase"]
[SourceQuality "1"]
[TimeControl "5400+30"]

1. e4 {[%emt 0:00:02]} e5 {[%emt 0:20:01]} 2. Nf3 {[%emt 0:00:23]} Nc6 {[%emt 0:01:06]} 3. Bb5 {[%emt 0:00:21]} a6 {[%emt 0:00:21]} 4. Ba4 {[%emt 0:00:07]} Nf6 {[%emt 0:00:17]} 5. O-O {[%emt 0:00:09]} b5 {[%emt 0:00:16]} 6. Bb3 {[%emt 0:00:08]} Bc5 {[%emt 0:01:14]} 7. a4 {[%emt 0:00:08]} Rb8 {[%emt 0:01:21]} 8. c3 {[%emt 0:00:33]} O-O {[%emt 0:01:59]} 9. d4 {[%emt 0:01:26]} exd4 {[%emt 0:01:41]} 10. e5 {[%emt 0:00:56]} Ne4 {[%emt 0:02:19]} 11. cxd4 {[%emt 0:00:36]} Bb4 {[%emt 0:01:09]} 12. Bd5 {[%emt 0:02:25]} 1-0

[Event "VIII Iberoamericano Mexico 2022"]
[Site "Mexico City"]
[Date "2022.02.19"]
[Round "9.2"]
[White "Obregon Rivero, Juan Carlos"]
[Black "Vazquez, Guillermo"]
[Result "1/2-1/2"]
[ECO "B12"]
[WhiteElo "2536"]
[BlackElo "2545"]
[Annotator "ChessBase"]
[PlyCount "76"]
[EventDate "2022.02.12"]
[EventType "swiss"]
[EventCountry "MEX"]
[SourceTitle "playchess.com"]
[Source "ChessBase"]
[SourceQuality "1"]
[TimeControl "5400+30"]

1. e4 {[%emt 0:00:06]} c6 {[%emt 0:00:37]} 2. d4 {[%emt 0:00:22]} d5 {[%emt 0:00:07]} 3. e5 {[%emt 0:00:21]} Bf5 {[%emt 0:01:19]} 4. h4 {[%emt 0:00:48]} h5 {[%emt 0:00:44]} 5. c4 {[%emt 0:00:29]} e6 {[%emt 0:00:10]} 6. Nc3 {[%emt 0:00:10]} dxc4 {[%emt 0:01:43]} 7. Bxc4 {[%emt 0:00:08]} Nd7 {[%emt 0:00:09]} 8. Nge2 {[%emt 0:01:09]} Be7 {[%emt 0:00:36]} 9. Ng3 {[%emt 0:02:27]} Bg6 {[%emt 0:00:45]} 10. Nge4 {[%emt 0:07:42]} Nb6 {[%emt 0:03:09]} 11. Bb3 {[%emt 0:03:39]} Nh6 {[%emt 0:00:27]} 12. Bg5 {[%emt 0:11:47]} Bxe4 {[%emt 0:03:58]} 13. Nxe4 {[%emt 0:00:24]} Nf5 {[%emt 0:00:10]} 14. O-O {[%emt 0:17:30]} Qxd4 {[%emt 0:10:29]} 15. Qf3 {[%emt 0:00:53]} Nd5 {[%emt 0:05:52]} 16. Rad1 {[%emt 0:06:39]} Qxe5 {[%emt 0:01:40]} 17. Rfe1 {[%emt 0:00:02]} Nd4 {[%emt 0:13:32]} 18. Qd3 {[%emt 0:13:27]} Nxb3 {[%emt 0:01:36]} 19. Bxe7 {[%emt 0:00:28]} Kxe7 {[%emt 0:01:28]} 20. Qxb3 {[%emt 0:00:27]} Qc7 {[%emt 0:05:22]} 21. Qa3+ {[%emt 0:00:21]} Ke8 {[%emt 0:00:14]} 22. Nd6+ {[%emt 0:02:45]} Kf8 {[%emt 0:47:23]} 23. Nxb7+ {[%emt 0:11:24]} Qe7 {[%emt 0:00:00]} 24. Nc5 {[%emt 0:00:06]} Kg8 {[%emt 0:00:00]} 25. Rc1 {[%emt 0:02:21]} Qxh4 {[%emt 0:00:00]} 26. Ne4 {[%emt 0:00:07]} Rh6 {[%emt 0:00:00]} 27. Rxc6 {[%emt 0:00:47]} Qg4 {[%emt 0:00:00]} 28. Rc4 {[%emt 0:03:15]} Nf4 {[%emt 0:00:00]} 29. g3 {[%emt 0:00:41]} h4 {[%emt 0:00:00]} 30. f3 {[%emt 0:01:23]} Qg6 {[%emt 0:00:00]} 31. g4 {[%emt 0:00:30]} e5 {[%emt 0:00:00]} 32. Qc3 {[%emt 0:03:20]} Qb6+ {[%emt 0:00:00]} 33. Kh1 {[%emt 0:00:12]} Re6 {[%emt 0:00:00]} 34. Rc8+ {[%emt 0:01:47]} Re8 {[%emt 0:00:00]} 35. Rxa8 {[%emt 0:00:13]} Rxa8 {[%emt 0:00:00]} 36. Qxe5 {[%emt 0:00:33]} Nd3 {[%emt 0:00:00]} 37. Qd5 {[%emt 0:00:13]} Rd8 {[%emt 0:00:00]} 38. Nd6 {[%emt 0:01:36]} Nxe1 {[%emt 0:00:00]} 1/2-1/2